[Event "Early-Titled-Tuesday-Blitz-January-30-2024"]
[Site "Chess.com"]
[Date "2024.01.30"]
[Round "7"]
[White "IMRosen"]
[Black "Shushik"]
[Result "1-0"]
[WhiteElo "2719"]
[BlackElo "2526"]
[TimeControl "180+1"]
[EndTime "9:18:54 PST"]
[Termination "IMRosen won by resignation"]

1. e4 {[%clk 0:03:00.9]} 1... e5 {[%clk 0:02:59.3]} 2. Nf3 {[%clk 0:02:56.7]}
2... Nc6 {[%clk 0:02:59.7]} 3. c3 {[%clk 0:02:57]} 3... d5 {[%clk 0:02:54.6]} 4.
Qa4 {[%clk 0:02:55.8]} 4... dxe4 {[%clk 0:02:27.3]} 5. Nxe5 {[%clk 0:02:55]}
5... Qd5 {[%clk 0:02:27.4]} 6. Nxc6 {[%clk 0:02:54.7]} 6... bxc6 {[%clk
0:02:27.4]} 7. Bc4 {[%clk 0:02:54.3]} 7... Qd6 {[%clk 0:02:15.5]} 8. O-O {[%clk
0:02:52.3]} 8... Nf6 {[%clk 0:02:15.6]} 9. d3 {[%clk 0:02:42.8]} 9... Be7 {[%clk
0:02:02.7]} 10. Bf4 {[%clk 0:02:32.2]} 10... Qc5 {[%clk 0:01:38.1]} 11. dxe4
{[%clk 0:02:00.5]} 11... O-O {[%clk 0:01:34.6]} 12. Nd2 {[%clk 0:01:48.7]} 12...
Bd7 {[%clk 0:01:23]} 13. Qc2 {[%clk 0:01:45.7]} 13... Qh5 {[%clk 0:01:15.8]} 14.
Bxc7 {[%clk 0:01:41.6]} 14... Ng4 {[%clk 0:01:01.6]} 15. Bg3 {[%clk 0:01:38.2]}
15... Kh8 {[%clk 0:00:44.5]} 16. h3 {[%clk 0:01:25.2]} 16... Ne5 {[%clk
0:00:40.8]} 17. Ba6 {[%clk 0:00:55.4]} 17... Ng6 {[%clk 0:00:38.5]} 18. Rfe1
{[%clk 0:00:51.5]} 18... Bc5 {[%clk 0:00:36]} 19. b4 {[%clk 0:00:47.6]} 19...
Bb6 {[%clk 0:00:36.2]} 20. a4 {[%clk 0:00:37.4]} 20... Qg5 {[%clk 0:00:32.4]}
21. Nf1 {[%clk 0:00:34]} 21... f5 {[%clk 0:00:30.7]} 22. a5 {[%clk 0:00:33.2]}
22... Bd8 {[%clk 0:00:29.8]} 23. Qd2 {[%clk 0:00:32.5]} 23... f4 {[%clk
0:00:29.6]} 24. Qxd7 {[%clk 0:00:32.4]} 24... fxg3 {[%clk 0:00:28.9]} 25. Nxg3
{[%clk 0:00:32.9]} 25... Bf6 {[%clk 0:00:26.9]} 26. Re3 {[%clk 0:00:30.4]} 26...
Nf4 {[%clk 0:00:25.1]} 27. Qf5 {[%clk 0:00:26.6]} 27... Qh6 {[%clk 0:00:23.6]}
28. Qg4 {[%clk 0:00:22.3]} 28... Bg5 {[%clk 0:00:20.1]} 29. Nf5 {[%clk
0:00:22.1]} 29... Qf6 {[%clk 0:00:20.1]} 30. Rf3 {[%clk 0:00:20.1]} 30... h5
{[%clk 0:00:15.7]} 31. Qg3 {[%clk 0:00:19.9]} 31... Ne2+ {[%clk 0:00:16]} 32.
Bxe2 {[%clk 0:00:17.3]} 1-0

[Event "Early-Titled-Tuesday-Blitz-January-30-2024"]
[Site "Chess.com"]
[Date "2024.01.30"]
[Round "7"]
[White "chedimir"]
[Black "VinzentSpitzl"]
[Result "0-1"]
[WhiteElo "2444"]
[BlackElo "2624"]
[TimeControl "180+1"]
[EndTime "9:19:00 PST"]
[Termination "VinzentSpitzl won by checkmate"]

1. e4 {[%clk 0:03:00]} 1... c5 {[%clk 0:02:59.2]} 2. Nf3 {[%clk 0:02:59.6]} 2...
d6 {[%clk 0:02:59.9]} 3. d4 {[%clk 0:02:50.9]} 3... cxd4 {[%clk 0:03:00.3]} 4.
Nxd4 {[%clk 0:02:50.7]} 4... Nf6 {[%clk 0:03:01]} 5. Nc3 {[%clk 0:02:50.1]} 5...
a6 {[%clk 0:03:01.5]} 6. Be2 {[%clk 0:02:49.7]} 6... e5 {[%clk 0:03:01.7]} 7.
Nb3 {[%clk 0:02:48.3]} 7... Be7 {[%clk 0:03:01.3]} 8. Be3 {[%clk 0:02:45.5]}
8... Be6 {[%clk 0:03:00.6]} 9. Qd2 {[%clk 0:02:45.4]} 9... Nbd7 {[%clk
0:02:49.8]} 10. f4 {[%clk 0:02:44.6]} 10... Qc7 {[%clk 0:02:38.1]} 11. O-O-O
{[%clk 0:02:07.7]} 11... Rc8 {[%clk 0:02:31.2]} 12. Kb1 {[%clk 0:02:03.2]} 12...
exf4 {[%clk 0:02:11.9]} 13. Bxf4 {[%clk 0:02:02.2]} 13... Ne5 {[%clk 0:02:12.6]}
14. Nd4 {[%clk 0:02:01.2]} 14... O-O {[%clk 0:02:07.5]} 15. g4 {[%clk
0:01:31.9]} 15... Nfxg4 {[%clk 0:01:44.2]} 16. Rhg1 {[%clk 0:01:23.5]} 16... Nf6
{[%clk 0:01:39.7]} 17. Nf5 {[%clk 0:01:18.9]} 17... Bxf5 {[%clk 0:01:32.8]} 18.
exf5 {[%clk 0:01:18.1]} 18... Kh8 {[%clk 0:01:33.4]} 19. Rg3 {[%clk 0:01:12.1]}
19... b5 {[%clk 0:01:14.6]} 20. a3 {[%clk 0:00:37]} 20... Nc4 {[%clk 0:01:07.8]}
21. Bxc4 {[%clk 0:00:33.9]} 21... Qxc4 {[%clk 0:01:07.9]} 22. Bxd6 {[%clk
0:00:23.6]} 22... Bxd6 {[%clk 0:01:01.6]} 23. Qxd6 {[%clk 0:00:23]} 23... Rfe8
{[%clk 0:00:46.9]} 24. Rxg7 {[%clk 0:00:19.8]} 24... Rc6 {[%clk 0:00:33.1]} 25.
Qg3 {[%clk 0:00:14.5]} 25... Ne4 {[%clk 0:00:30.4]} 26. Nxe4 {[%clk 0:00:08.1]}
26... Qxc2+ {[%clk 0:00:29.9]} 27. Ka2 {[%clk 0:00:07.9]} 27... Qxd1 {[%clk
0:00:17.9]} 28. Ng5 {[%clk 0:00:07.4]} 28... Qd5+ {[%clk 0:00:16.4]} 29. b3
{[%clk 0:00:04.8]} 29... Rc2+ {[%clk 0:00:16.3]} 30. Kb1 {[%clk 0:00:04.6]}
30... Qd1# {[%clk 0:00:16.7]} 0-1

[Event "Early-Titled-Tuesday-Blitz-January-30-2024"]
[Site "Chess.com"]
[Date "2024.01.30"]
[Round "7"]
[White "mbchess97"]
[Black "toninhojit"]
[Result "1-0"]
[WhiteElo "2404"]
[BlackElo "2565"]
[TimeControl "180+1"]
[EndTime "9:19:03 PST"]
[Termination "mbchess97 won by resignation"]

1. c4 {[%clk 0:03:00.9]} 1... c5 {[%clk 0:02:59.4]} 2. g3 {[%clk 0:03:00.8]}
2... Nc6 {[%clk 0:02:59.9]} 3. Bg2 {[%clk 0:03:01.3]} 3... g6 {[%clk 0:03:00.5]}
4. Nc3 {[%clk 0:03:00.4]} 4... Bg7 {[%clk 0:03:01]} 5. Nf3 {[%clk 0:03:00.6]}
5... e5 {[%clk 0:03:01.3]} 6. a3 {[%clk 0:02:55]} 6... d6 {[%clk 0:02:30]} 7. d3
{[%clk 0:02:53.6]} 7... Nge7 {[%clk 0:02:29.7]} 8. O-O {[%clk 0:02:51.1]} 8...
O-O {[%clk 0:02:29.9]} 9. Ne1 {[%clk 0:02:46.9]} 9... f5 {[%clk 0:02:27.5]} 10.
Nc2 {[%clk 0:02:46.8]} 10... f4 {[%clk 0:02:28.1]} 11. b4 {[%clk 0:02:44.4]}
11... Rb8 {[%clk 0:02:21.3]} 12. Bb2 {[%clk 0:02:34.8]} 12... b6 {[%clk
0:02:16.5]} 13. Nd5 {[%clk 0:02:15.5]} 13... g5 {[%clk 0:02:16.8]} 14. e3 {[%clk
0:02:07.6]} 14... Be6 {[%clk 0:02:10.7]} 15. exf4 {[%clk 0:01:58.9]} 15... gxf4
{[%clk 0:02:08.8]} 16. gxf4 {[%clk 0:01:39.5]} 16... Kh8 {[%clk 0:02:07.4]} 17.
Nxe7 {[%clk 0:01:33.5]} 17... Nxe7 {[%clk 0:02:06.1]} 18. fxe5 {[%clk
0:01:30.8]} 18... Ng6 {[%clk 0:02:04.4]} 19. Ne3 {[%clk 0:01:24.4]} 19... Nf4
{[%clk 0:02:01.6]} 20. Kh1 {[%clk 0:01:17.4]} 20... Qh4 {[%clk 0:01:54.9]} 21.
Be4 {[%clk 0:01:05.6]} 21... Nh3 {[%clk 0:01:42.1]} 22. Ng2 {[%clk 0:00:33.2]}
22... Nxf2+ {[%clk 0:01:27.6]} 23. Rxf2 {[%clk 0:00:34.1]} 23... Qxf2 {[%clk
0:01:26.8]} 24. Qh5 {[%clk 0:00:34.1]} 24... Bg8 {[%clk 0:01:16.5]} 25. Rg1
{[%clk 0:00:22.6]} 25... Qxb2 {[%clk 0:01:12.6]} 26. Nh4 {[%clk 0:00:21.8]}
26... h6 {[%clk 0:00:32.6]} 27. Ng6+ {[%clk 0:00:21.7]} 27... Kh7 {[%clk
0:00:30.6]} 28. Nxf8+ {[%clk 0:00:21.9]} 28... Kh8 {[%clk 0:00:31.3]} 29. Ng6+
{[%clk 0:00:21.9]} 29... Kh7 {[%clk 0:00:31.9]} 30. Nh4+ {[%clk 0:00:17.1]}
30... Kh8 {[%clk 0:00:32.1]} 31. Nf5 {[%clk 0:00:17.1]} 31... Qxe5 {[%clk
0:00:28.1]} 32. Rxg7 {[%clk 0:00:16.7]} 32... Qf6 {[%clk 0:00:19.3]} 33. Rg6
{[%clk 0:00:15.7]} 33... Qa1+ {[%clk 0:00:18.3]} 34. Rg1 {[%clk 0:00:15.2]}
34... Qf6 {[%clk 0:00:17.3]} 35. Nxh6 {[%clk 0:00:14]} 35... Bh7 {[%clk
0:00:13.9]} 36. Nf7+ {[%clk 0:00:13.6]} 1-0

[Event "Early-Titled-Tuesday-Blitz-January-30-2024"]
[Site "Chess.com"]
[Date "2024.01.30"]
[Round "7"]
[White "MKlose11"]
[Black "VladimirKramnik"]
[Result "0-1"]
[WhiteElo "2669"]
[BlackElo "2941"]
[TimeControl "180+1"]
[EndTime "9:19:05 PST"]
[Termination "VladimirKramnik won by resignation"]

1. e4 {[%clk 0:03:00.9]} 1... c5 {[%clk 0:02:59.4]} 2. Nc3 {[%clk 0:03:00.7]}
2... e6 {[%clk 0:02:58.6]} 3. d3 {[%clk 0:03:01.2]} 3... Nc6 {[%clk 0:02:57.8]}
4. g3 {[%clk 0:03:01.6]} 4... g6 {[%clk 0:02:57]} 5. Bg2 {[%clk 0:03:02]} 5...
Bg7 {[%clk 0:02:57.5]} 6. Be3 {[%clk 0:03:02]} 6... d6 {[%clk 0:02:56.9]} 7. Qd2
{[%clk 0:03:02.4]} 7... Nd4 {[%clk 0:02:50.7]} 8. Nd1 {[%clk 0:03:01.9]} 8...
Ne7 {[%clk 0:02:49]} 9. c3 {[%clk 0:03:02.3]} 9... Ndc6 {[%clk 0:02:49.1]} 10.
Bh6 {[%clk 0:03:02.9]} 10... O-O {[%clk 0:02:31.3]} 11. h4 {[%clk 0:03:02.4]}
11... f6 {[%clk 0:02:27.8]} 12. Bxg7 {[%clk 0:03:02.7]} 12... Kxg7 {[%clk
0:02:27.4]} 13. f4 {[%clk 0:03:03.6]} 13... h5 {[%clk 0:02:09.1]} 14. Ne3 {[%clk
0:03:02.6]} 14... d5 {[%clk 0:02:05.5]} 15. Nf3 {[%clk 0:02:49.5]} 15... dxe4
{[%clk 0:02:03.1]} 16. dxe4 {[%clk 0:02:46.8]} 16... Qxd2+ {[%clk 0:02:02.9]}
17. Nxd2 {[%clk 0:02:40.9]} 17... Bd7 {[%clk 0:02:01.3]} 18. O-O-O {[%clk
0:02:35]} 18... Rad8 {[%clk 0:02:01.7]} 19. Ndc4 {[%clk 0:02:34.9]} 19... e5
{[%clk 0:01:53.4]} 20. Nd6 {[%clk 0:02:26.4]} 20... Bc8 {[%clk 0:01:44.5]} 21.
f5 {[%clk 0:02:10.8]} 21... b6 {[%clk 0:01:38]} 22. fxg6 {[%clk 0:02:06.7]}
22... Kxg6 {[%clk 0:01:32.5]} 23. Nxc8 {[%clk 0:02:01.2]} 23... Nxc8 {[%clk
0:01:26.6]} 24. Bh3 {[%clk 0:01:54.6]} 24... N8e7 {[%clk 0:01:22.2]} 25. Bf5+
{[%clk 0:01:54.5]} 25... Kf7 {[%clk 0:01:17.4]} 26. g4 {[%clk 0:01:46.5]} 26...
Rh8 {[%clk 0:01:14]} 27. g5 {[%clk 0:01:37.1]} 27... fxg5 {[%clk 0:01:05.1]} 28.
hxg5 {[%clk 0:01:36.3]} 28... Rxd1+ {[%clk 0:01:04.3]} 29. Kxd1 {[%clk
0:01:34.1]} 29... Ng6 {[%clk 0:01:01.1]} 30. Nd5 {[%clk 0:01:27.1]} 30... Nce7
{[%clk 0:00:56.1]} 31. Ke2 {[%clk 0:01:24.9]} 31... Nxd5 {[%clk 0:00:51.5]} 32.
exd5 {[%clk 0:01:23.1]} 32... Nf4+ {[%clk 0:00:41.4]} 33. Ke3 {[%clk 0:01:23.5]}
33... Nxd5+ {[%clk 0:00:40.5]} 34. Ke4 {[%clk 0:01:23.9]} 34... Ne7 {[%clk
0:00:40.6]} 35. Kxe5 {[%clk 0:01:22.1]} 35... Kg7 {[%clk 0:00:32.5]} 36. Rd1
{[%clk 0:01:15.6]} 36... Nxf5 {[%clk 0:00:32.2]} 37. Kxf5 {[%clk 0:01:15.5]}
37... Rf8+ {[%clk 0:00:32.7]} 38. Ke4 {[%clk 0:01:12.2]} 38... Kg6 {[%clk
0:00:33.1]} 39. Rd7 {[%clk 0:01:11.1]} 39... h4 {[%clk 0:00:31.6]} 40. Rd6+
{[%clk 0:00:41.7]} 40... Kxg5 {[%clk 0:00:31]} 41. Rd7 {[%clk 0:00:42.6]} 41...
Kg6 {[%clk 0:00:27.2]} 42. Rd6+ {[%clk 0:00:41.9]} 42... Rf6 {[%clk 0:00:26.6]}
43. Rd8 {[%clk 0:00:40.8]} 43... Kg5 {[%clk 0:00:23.9]} 44. Rh8 {[%clk
0:00:37.6]} 44... Rh6 {[%clk 0:00:21.2]} 45. Rg8+ {[%clk 0:00:36.5]} 45... Rg6
{[%clk 0:00:21.4]} 46. Rh8 {[%clk 0:00:35.5]} 46... Kg4 {[%clk 0:00:22]} 47. Ke3
{[%clk 0:00:34.7]} 47... Kg3 {[%clk 0:00:22]} 48. Ke2 {[%clk 0:00:35.1]} 48...
h3 {[%clk 0:00:21.3]} 49. Kf1 {[%clk 0:00:35.5]} 49... h2 {[%clk 0:00:21.6]} 50.
a4 {[%clk 0:00:32.6]} 50... Rf6+ {[%clk 0:00:20.6]} 51. Ke2 {[%clk 0:00:33]}
51... Rf4 {[%clk 0:00:21.1]} 0-1

[Event "Early-Titled-Tuesday-Blitz-January-30-2024"]
[Site "Chess.com"]
[Date "2024.01.30"]
[Round "7"]
[White "Slovineanu"]
[Black "invisible_s0ul"]
[Result "1-0"]
[WhiteElo "2443"]
[BlackElo "2247"]
[TimeControl "180+1"]
[EndTime "9:19:06 PST"]
[Termination "Slovineanu won on time"]

1. d4 {[%clk 0:02:59.3]} 1... d5 {[%clk 0:02:56]} 2. Nf3 {[%clk 0:02:59.3]} 2...
c6 {[%clk 0:02:56.5]} 3. c4 {[%clk 0:02:59.5]} 3... Nf6 {[%clk 0:02:54.9]} 4. e3
{[%clk 0:02:59.7]} 4... e6 {[%clk 0:02:54.2]} 5. Nbd2 {[%clk 0:02:59.7]} 5...
Bd6 {[%clk 0:02:54.3]} 6. Bd3 {[%clk 0:02:59.7]} 6... O-O {[%clk 0:02:54]} 7.
O-O {[%clk 0:02:59.4]} 7... dxc4 {[%clk 0:02:53.6]} 8. Nxc4 {[%clk 0:02:59.4]}
8... b5 {[%clk 0:02:51.8]} 9. Nxd6 {[%clk 0:02:58.4]} 9... Qxd6 {[%clk
0:02:52.7]} 10. a4 {[%clk 0:02:49.4]} 10... b4 {[%clk 0:02:43.2]} 11. e4 {[%clk
0:02:46.5]} 11... Qe7 {[%clk 0:02:38.1]} 12. Bg5 {[%clk 0:02:43.2]} 12... h6
{[%clk 0:02:37.8]} 13. Bh4 {[%clk 0:02:43.1]} 13... Qc7 {[%clk 0:02:24.5]} 14.
Bxf6 {[%clk 0:02:28.6]} 14... gxf6 {[%clk 0:02:25.4]} 15. Qd2 {[%clk 0:02:27]}
15... Kh7 {[%clk 0:02:21.6]} 16. Qxb4 {[%clk 0:02:19.1]} 16... Nd7 {[%clk
0:02:19.1]} 17. Rfc1 {[%clk 0:02:12.8]} 17... Bb7 {[%clk 0:02:10.2]} 18. e5+
{[%clk 0:02:07.3]} 18... f5 {[%clk 0:02:09.3]} 19. Qe7 {[%clk 0:02:06.2]} 19...
Rae8 {[%clk 0:02:02.8]} 20. Qh4 {[%clk 0:02:05.8]} 20... Rg8 {[%clk 0:02:01.2]}
21. Qh5 {[%clk 0:01:48]} 21... Nf8 {[%clk 0:01:47.5]} 22. Rc3 {[%clk 0:01:39.4]}
22... Qe7 {[%clk 0:01:42.5]} 23. a5 {[%clk 0:01:35.2]} 23... a6 {[%clk
0:01:41.4]} 24. Rb3 {[%clk 0:01:30.8]} 24... Ng6 {[%clk 0:01:31.8]} 25. g3
{[%clk 0:01:15.5]} 25... c5 {[%clk 0:00:55.5]} 26. dxc5 {[%clk 0:01:04.7]} 26...
Bd5 {[%clk 0:00:09.6]} 27. Rc3 {[%clk 0:00:55.3]} 27... Nf4 {[%clk 0:00:09.7]}
28. Bxf5+ {[%clk 0:00:53.2]} 28... exf5 {[%clk 0:00:04.4]} 29. Qxf5+ {[%clk
0:00:53.2]} 29... Ng6 {[%clk 0:00:05]} 30. c6 {[%clk 0:00:46.4]} 30... Qc7
{[%clk 0:00:03.9]} 31. Rac1 {[%clk 0:00:15.9]} 31... Bxf3 {[%clk 0:00:03.7]} 32.
Rxf3 {[%clk 0:00:16]} 32... Rxe5 {[%clk 0:00:02.3]} 33. Qxf7+ {[%clk 0:00:15.7]}
33... Rg7 {[%clk 0:00:01.1]} 34. Qf6 {[%clk 0:00:11.1]} 1-0

[Event "Early-Titled-Tuesday-Blitz-January-30-2024"]
[Site "Chess.com"]
[Date "2024.01.30"]
[Round "7"]
[White "Better_Chess_Faster"]
[Black "wild3000"]
[Result "0-1"]
[WhiteElo "2139"]
[BlackElo "2378"]
[TimeControl "180+1"]
[EndTime "9:19:06 PST"]
[Termination "wild3000 won on time"]

1. d4 {[%clk 0:03:00.9]} 1... a6 {[%clk 0:00:01.9]} 2. e4 {[%clk 0:02:57.2]}
2... e6 {[%clk 0:00:02.1]} 3. Nc3 {[%clk 0:02:51.6]} 3... Ne7 {[%clk 0:00:03]}
4. Nf3 {[%clk 0:02:48.1]} 4... d6 {[%clk 0:00:03.9]} 5. Be2 {[%clk 0:02:46]}
5... Bd7 {[%clk 0:00:04.8]} 6. O-O {[%clk 0:02:44.4]} 6... b5 {[%clk 0:00:05.7]}
7. a3 {[%clk 0:02:43.4]} 7... Ng6 {[%clk 0:00:06.6]} 8. Be3 {[%clk 0:02:40.9]}
8... Be7 {[%clk 0:00:07.5]} 9. Qd2 {[%clk 0:02:38.2]} 9... O-O {[%clk
0:00:08.4]} 10. Rad1 {[%clk 0:02:29.9]} 10... c6 {[%clk 0:00:09.3]} 11. d5
{[%clk 0:02:25.3]} 11... cxd5 {[%clk 0:00:08.8]} 12. exd5 {[%clk 0:02:25.5]}
12... e5 {[%clk 0:00:09.7]} 13. Rfe1 {[%clk 0:02:08.4]} 13... Bg4 {[%clk
0:00:09.7]} 14. Ng5 {[%clk 0:01:56.8]} 14... Bxe2 {[%clk 0:00:09.4]} 15. Rxe2
{[%clk 0:01:55.1]} 15... Nd7 {[%clk 0:00:09.5]} 16. f3 {[%clk 0:01:44.9]} 16...
Rc8 {[%clk 0:00:09.7]} 17. Kh1 {[%clk 0:01:29.5]} 17... Nb6 {[%clk 0:00:09.9]}
18. b3 {[%clk 0:01:22.7]} 18... Nd7 {[%clk 0:00:10]} 19. Nge4 {[%clk 0:01:18.4]}
19... f5 {[%clk 0:00:09.2]} 20. Ng5 {[%clk 0:01:15.2]} 20... Bxg5 {[%clk
0:00:09.3]} 21. Bxg5 {[%clk 0:01:15]} 21... Nf6 {[%clk 0:00:09.6]} 22. Rc1
{[%clk 0:00:53]} 22... Qc7 {[%clk 0:00:09.8]} 23. Nd1 {[%clk 0:00:51]} 23... Qf7
{[%clk 0:00:10.7]} 24. c4 {[%clk 0:00:44.8]} 24... h6 {[%clk 0:00:10.7]} 25.
Bxf6 {[%clk 0:00:44.3]} 25... Qxf6 {[%clk 0:00:10.8]} 26. Ne3 {[%clk 0:00:37.1]}
26... Nf4 {[%clk 0:00:10.8]} 27. Ree1 {[%clk 0:00:35.2]} 27... bxc4 {[%clk
0:00:11.7]} 28. bxc4 {[%clk 0:00:35]} 28... e4 {[%clk 0:00:11.3]} 29. Rf1 {[%clk
0:00:23.6]} 29... Nd3 {[%clk 0:00:10.9]} 30. Rcd1 {[%clk 0:00:19.2]} 30... Qd4
{[%clk 0:00:10.5]} 31. fxe4 {[%clk 0:00:14.3]} 31... fxe4 {[%clk 0:00:11.4]} 32.
Rxf8+ {[%clk 0:00:13.7]} 32... Rxf8 {[%clk 0:00:11.2]} 33. Kg1 {[%clk
0:00:01.5]} 33... Rf6 {[%clk 0:00:10.9]} 0-1

[Event "Early-Titled-Tuesday-Blitz-January-30-2024"]
[Site "Chess.com"]
[Date "2024.01.30"]
[Round "7"]
[White "Horokoskii"]
[Black "Bkmzzzzz"]
[Result "0-1"]
[WhiteElo "2150"]
[BlackElo "2335"]
[TimeControl "180+1"]
[EndTime "9:19:07 PST"]
[Termination "Bkmzzzzz won on time"]

1. c4 {[%clk 0:03:00.9]} 1... e5 {[%clk 0:02:54.4]} 2. Nc3 {[%clk 0:02:58.3]}
2... d6 {[%clk 0:02:53]} 3. g3 {[%clk 0:02:56.2]} 3... f5 {[%clk 0:02:53.6]} 4.
d3 {[%clk 0:02:55.1]} 4... Nf6 {[%clk 0:02:54.2]} 5. Bg2 {[%clk 0:02:55.5]} 5...
c6 {[%clk 0:02:54.1]} 6. Nf3 {[%clk 0:02:56.1]} 6... g6 {[%clk 0:02:54.6]} 7.
O-O {[%clk 0:02:56.4]} 7... Bg7 {[%clk 0:02:55.3]} 8. a3 {[%clk 0:02:53.6]} 8...
O-O {[%clk 0:02:55.8]} 9. b4 {[%clk 0:02:53.9]} 9... h6 {[%clk 0:02:53.9]} 10.
Bb2 {[%clk 0:02:53.5]} 10... Be6 {[%clk 0:02:53.3]} 11. Rc1 {[%clk 0:02:53.5]}
11... Nbd7 {[%clk 0:02:51.5]} 12. Qd2 {[%clk 0:02:43.6]} 12... Kh7 {[%clk
0:02:47.2]} 13. h4 {[%clk 0:02:42.2]} 13... Qe7 {[%clk 0:02:37.4]} 14. Nh2
{[%clk 0:02:37]} 14... d5 {[%clk 0:02:23.1]} 15. cxd5 {[%clk 0:02:35.8]} 15...
Nxd5 {[%clk 0:02:23.7]} 16. Nxd5 {[%clk 0:02:36.1]} 16... Bxd5 {[%clk
0:02:24.3]} 17. Nf3 {[%clk 0:02:32]} 17... Rad8 {[%clk 0:02:16.9]} 18. b5 {[%clk
0:02:31.8]} 18... Rfe8 {[%clk 0:02:13.9]} 19. a4 {[%clk 0:02:27.5]} 19... e4
{[%clk 0:01:58.7]} 20. Bxg7 {[%clk 0:02:22.3]} 20... Qxg7 {[%clk 0:01:59.6]} 21.
dxe4 {[%clk 0:02:16.8]} 21... Bxe4 {[%clk 0:02:00.5]} 22. Qf4 {[%clk 0:02:10.3]}
22... Nb6 {[%clk 0:01:55.5]} 23. bxc6 {[%clk 0:02:00.9]} 23... Bxc6 {[%clk
0:01:52.9]} 24. a5 {[%clk 0:01:42.8]} 24... Nd5 {[%clk 0:01:16.4]} 25. Qd4
{[%clk 0:01:40.2]} 25... Qc7 {[%clk 0:00:57.8]} 26. h5 {[%clk 0:01:05.5]} 26...
g5 {[%clk 0:00:36]} 27. Rfd1 {[%clk 0:00:45.1]} 27... Ne3 {[%clk 0:00:23.7]} 28.
Qf6 {[%clk 0:00:25]} 28... Rxd1+ {[%clk 0:00:17.5]} 29. Rxd1 {[%clk 0:00:24.5]}
29... Nxd1 {[%clk 0:00:17.9]} 30. Qxf5+ {[%clk 0:00:12]} 30... Kg8 {[%clk
0:00:18.4]} 31. Qd3 {[%clk 0:00:04.2]} 31... Qd7 {[%clk 0:00:18.5]} 32. Qg6+
{[%clk 0:00:02.5]} 32... Qg7 {[%clk 0:00:18.3]} 33. Qd3 {[%clk 0:00:02.9]} 33...
Nc3 {[%clk 0:00:18]} 34. Qc4+ {[%clk 0:00:02.7]} 34... Bd5 {[%clk 0:00:17.6]}
35. Qc5 {[%clk 0:00:01.5]} 35... Nxe2+ {[%clk 0:00:15.8]} 36. Kh2 {[%clk
0:00:01.1]} 36... Bf7 {[%clk 0:00:16]} 0-1

[Event "Early-Titled-Tuesday-Blitz-January-30-2024"]
[Site "Chess.com"]
[Date "2024.01.30"]
[Round "7"]
[White "MetiForce"]
[Black "Timerkhanov"]
[Result "1-0"]
[WhiteElo "2841"]
[BlackElo "2659"]
[TimeControl "180+1"]
[EndTime "9:19:08 PST"]
[Termination "MetiForce won by checkmate"]

1. c4 {[%clk 0:02:55]} 1... c6 {[%clk 0:02:59.5]} 2. Nf3 {[%clk 0:02:54.7]} 2...
d5 {[%clk 0:03:00.1]} 3. e3 {[%clk 0:02:55.5]} 3... Nf6 {[%clk 0:02:59.8]} 4. b3
{[%clk 0:02:56.1]} 4... a6 {[%clk 0:02:59.4]} 5. Bb2 {[%clk 0:02:56.6]} 5... Bf5
{[%clk 0:02:59.2]} 6. Nc3 {[%clk 0:02:56.7]} 6... e6 {[%clk 0:02:59.1]} 7. Be2
{[%clk 0:02:55.4]} 7... Nbd7 {[%clk 0:02:58.8]} 8. Nh4 {[%clk 0:02:53.1]} 8...
Bg6 {[%clk 0:02:56.5]} 9. O-O {[%clk 0:02:53.2]} 9... Bd6 {[%clk 0:02:55.2]} 10.
f4 {[%clk 0:02:50.3]} 10... Qc7 {[%clk 0:02:34.7]} 11. Rc1 {[%clk 0:02:49.2]}
11... d4 {[%clk 0:02:31.8]} 12. Na4 {[%clk 0:02:39.7]} 12... dxe3 {[%clk
0:02:25.5]} 13. dxe3 {[%clk 0:02:38.7]} 13... Be4 {[%clk 0:02:17.6]} 14. Bf3
{[%clk 0:02:31.2]} 14... O-O-O {[%clk 0:02:12.5]} 15. Qe1 {[%clk 0:02:04.1]}
15... Bd3 {[%clk 0:01:55.3]} 16. c5 {[%clk 0:01:50.4]} 16... Be7 {[%clk
0:01:50.9]} 17. Rf2 {[%clk 0:01:24]} 17... Bb5 {[%clk 0:01:35.9]} 18. Bd4 {[%clk
0:01:16.5]} 18... Nd5 {[%clk 0:01:25.6]} 19. Rfc2 {[%clk 0:01:05.4]} 19... Nxf4
{[%clk 0:01:20.9]} 20. exf4 {[%clk 0:00:57.7]} 20... Qxf4 {[%clk 0:01:20.2]} 21.
Bf2 {[%clk 0:00:58.3]} 21... Bxa4 {[%clk 0:01:15.3]} 22. bxa4 {[%clk 0:00:56.9]}
22... g5 {[%clk 0:01:04.1]} 23. Rc4 {[%clk 0:00:56.6]} 23... Qe5 {[%clk
0:00:49.2]} 24. Re4 {[%clk 0:00:51.8]} 24... Qb8 {[%clk 0:00:41.9]} 25. Nf5
{[%clk 0:00:50.9]} 25... Bxc5 {[%clk 0:00:21.4]} 26. Bxc5 {[%clk 0:00:50.1]}
26... exf5 {[%clk 0:00:21.2]} 27. Re7 {[%clk 0:00:39.5]} 27... Nxc5 {[%clk
0:00:19.8]} 28. Rxc5 {[%clk 0:00:33.3]} 28... Qd6 {[%clk 0:00:08.8]} 29. Rxf5
{[%clk 0:00:30.2]} 29... Qd4+ {[%clk 0:00:06.8]} 30. Kh1 {[%clk 0:00:20.5]}
30... g4 {[%clk 0:00:07.2]} 31. Re4 {[%clk 0:00:20.2]} 31... Qd2 {[%clk
0:00:05.4]} 32. Bxg4 {[%clk 0:00:18.8]} 32... Qxe1+ {[%clk 0:00:05.4]} 33. Rxe1
{[%clk 0:00:19.7]} 33... Kb8 {[%clk 0:00:04.5]} 34. Rxf7 {[%clk 0:00:19.8]}
34... Rhe8 {[%clk 0:00:04.4]} 35. Rb1 {[%clk 0:00:19.7]} 35... Re4 {[%clk
0:00:04.2]} 36. Rbxb7+ {[%clk 0:00:19.5]} 36... Ka8 {[%clk 0:00:04.9]} 37. Ra7+
{[%clk 0:00:20.4]} 37... Kb8 {[%clk 0:00:05.8]} 38. Rfb7# {[%clk 0:00:21.3]} 1-0